fUSD/lending_fUSD_20251019
["ID","MTS","AMOUNT","RATE_DAILY","PERIOD"]
[391805498,1760857035201,-500.0,0.00014796,2]
[391805499,1760857035222,-454.21598235,0.00014824,2]
[391805500,1760857169130,365.84,0.00012766,2]
[391805501,1760857169323,365.84,0.00013437,2]
[391805502,1760857169517,365.84,0.00014109,2]
[391805503,1760857245377,-365.84,0.00014781,2]
[391805504,1760857245398,-45.78401765,0.00014824,2]
[391805505,1760857245419,-88.37598235,0.00014844,2]
[391805506,1760857261146,200.0,0.00032976,120]
[391805507,1760857279973,-161.62401765,0.00014844,2]
[391805508,1760857279996,-500.0,0.00014844,2]
[391805509,1760857280019,-500.0,0.00014855,2]
[391805510,1760857280041,-195.0,0.00014865,2]
[391805511,1760857280067,-168.0,0.0001517,2]
[391805512,1760857280090,-365.84,0.00015453,2]
[391805513,1760857280112,-163.68745285,0.0001561,2]
[391805514,1760857280134,-151.0,0.00015666,2]
[391805515,1760857280159,-168.0,0.0001571,2]
[391805516,1760857280182,-151.0,0.00015742,2]
[391805517,1760857280203,-151.0,0.00015803,2]
[391805518,1760857280225,-151.0,0.00015891,2]
[391805519,1760857280248,-365.84,0.00016125,2]
[391805520,1760857280273,-300.0,0.00016217,2]
[391805521,1760857280296,-1200.0,0.00016218,2]
[391805522,1760857280321,-300.0,0.00016218,2]
[391805523,1760857280345,-300.0,0.00016218,2]
[391805524,1760857280368,-300.0,0.00016219,2]
[391805525,1760857280389,-300.0,0.00016219,2]
[391805526,1760857280411,-2500.0,0.00016219,2]
[391805527,1760857280433,-195.0,0.00016219,2]
[391805528,1760857280456,-500.0,0.00016219,2]
[391805529,1760857280477,-250.0,0.00016306,2]
[391805530,1760857280501,-500.0,0.00016306,2]
[391805531,1760857280525,-500.0,0.00016329,2]
[391805532,1760857280549,-365.84,0.00016797,2]
[391805533,1760857280571,-3297.1685295,0.00017041,2]
[391805534,1760857325327,390.01690409,0.00032976,30]
[391805536,1760857406898,1750.2560123,0.00032976,120]
[391805537,1760857408818,168.0,0.00014507,2]
[391805538,1760857440279,1043.51964015,0.00032977,120]
[391805539,1760857554800,12904.86650084,0.00032977,120]
[391805540,1760857560842,200.0,0.00032977,120]
[391805541,1760857575362,31545.0,0.00032977,30]
[391805542,1760857606447,1602.0,0.00014539,2]
[391805543,1760857610123,1602.0,0.00014638,2]
[391805544,1760857632272,1602.0,0.00014537,2]
[391805545,1760857639086,1602.0,0.00014637,2]
[391805546,1760857643489,1602.0,0.00014515,2]
[391805552,1760857653883,1602.0,0.00014556,2]
[391805553,1760857667298,175.72,0.00027492,120]
[391805554,1760857684093,1602.0,0.00014696,2]
[391805557,1760857831587,-1602.0,0.00014726,2]
[391805558,1760857831596,-1602.0,0.00014837,2]
[391805559,1760857831606,-250.82061741,0.00014877,2]
[391805560,1760857831618,-1351.17938259,0.00014877,2]
[391805561,1760857831627,-500.0,0.00014938,2]
[391805562,1760857831637,-1602.0,0.00014999,2]
[391805563,1760857831646,-168.0,0.00015071,2]
[391805564,1760857831656,-300.0,0.00015104,2]
[391805565,1760857831666,-1200.0,0.00015104,2]
[391805566,1760857831676,-1602.0,0.00015105,2]
[391805567,1760857831685,-1602.0,0.00015105,2]
[391805568,1760857831694,-500.0,0.00015163,2]
[391805569,1760857831704,-195.0,0.00015254,2]
[391805570,1760857831714,-250.0,0.00015254,2]
[391805571,1760857831723,-151.0,0.00015255,2]
[391805572,1760857831733,-190.0,0.00015302,2]
[391805573,1760857831742,-151.0,0.00015303,2]
[391805574,1760857831752,-1602.0,0.00015304,2]
[391805575,1760857831761,-1602.0,0.00015363,2]
[391805576,1760857831771,-1602.0,0.00015403,2]
[391805577,1760857831780,-300.0,0.00015438,2]
[391805578,1760857831789,-1602.0,0.00015469,2]
[391805579,1760857831799,-1602.0,0.00015529,2]
[391805580,1760857831808,-1602.0,0.00015562,2]
[391805581,1760857831818,-195.0,0.00015612,2]
[391805582,1760857831830,-315.76558928,0.00015612,2]
[391805583,1760857831840,-1602.0,0.00015697,2]
[391805584,1760857831849,-1602.0,0.00015717,2]
[391805585,1760857831858,-1602.0,0.00015792,2]
[391805586,1760857831868,-300.0,0.00015796,2]
[391805587,1760857831878,-414.66523857,0.00015796,2]
[391805588,1760857831887,-1602.0,0.00015846,2]
[391805590,1760857831897,-168.0,0.00015952,2]
[391805592,1760857831908,-500.0,0.00016321,2]
[391805593,1760857831917,-195.0,0.00016365,2]
[391805595,1760857831926,-500.0,0.00016365,2]
[391805597,1760857831935,-420.0,0.00016529,2]
[391805599,1760857831944,-300.0,0.00016578,2]
[391805601,1760857831953,-2322.21403679,0.00016578,2]
[391805603,1760857831962,-300.0,0.00016578,2]
[391805605,1760857831972,-195.0,0.00016578,2]
[391805607,1760857831981,-250.0,0.00016578,2]
[391805609,1760857831992,-500.0,0.00016578,2]
[391805611,1760857832001,-300.0,0.00016578,2]
[391805613,1760857832010,-1680.0,0.00016612,2]
[391805615,1760857832019,-636.50877359,0.00016941,2]
[391805617,1760857832029,-152.32067695,0.00017041,2]
[391805619,1760857832038,-227.20282924,0.00017041,2]
[391805621,1760857832047,-3209.01718458,0.00017041,2]
[391805623,1760857832059,-260.47632912,0.00017041,2]
[391805624,1760857832068,-909.57,0.00017468,2]
[391805625,1760857832077,-365.84,0.00017469,2]
[391805626,1760857832087,-909.57,0.00017742,2]
[391805627,1760857832096,-909.57,0.00018016,2]
[391805628,1760857832105,-340.0,0.00018088,2]
[391805629,1760857832114,-365.84,0.00018141,2]
[391805630,1760857832123,-232.73367088,0.00018271,2]
[391805631,1760857832135,-2118.26632912,0.00018271,2]
[391805632,1760857832144,-474.19555514,0.0001829,2]
[391805634,1760857832381,-372.69871505,0.0001829,2]
[391805635,1760857832393,-62.67572981,0.0001829,2]
[391805636,1760857832402,-477.5426617,0.00018564,2]
[391805637,1760857832417,-432.0273383,0.00018564,2]
[391805638,1760857832427,-365.84,0.00018812,2]
[391805639,1760857832435,-222.00323894,0.00018828,2]
[391805640,1760857832447,-113.28064958,0.00018828,2]
[391805641,1760857832455,-596.64647306,0.00018838,2]
[391805642,1760857832467,-312.92352694,0.00018838,2]
[391805643,1760857832476,-267.87647706,0.00019112,2]
[391805652,1760857837394,-500.0,0.00015254,2]
[391805653,1760857837404,-25.47915172,0.00015254,2]
[391805654,1760857837426,-377.0126972,0.00015254,2]
[391805655,1760857837624,-97.50815108,0.00015254,2]
[391805656,1760857837634,-299.94995491,0.00015254,2]
[391805766,1760857839775,-200.05004509,0.00015254,2]
[391805767,1760857839785,-500.0,0.00015254,2]
[391805768,1760857839794,-500.0,0.00015254,2]
[391805769,1760857839803,-500.0,0.00015254,2]
[391805770,1760857839812,-500.0,0.00015254,2]
[391805771,1760857839821,-500.0,0.00015254,2]
[391805772,1760857839833,-500.0,0.00015254,2]
[391805773,1760857839842,-500.0,0.00015254,2]
[391805774,1760857839851,-500.0,0.00015254,2]
[391805775,1760857839859,-438.56830711,0.00015254,2]
[391805776,1760857839871,-61.43169289,0.00015254,2]
[391805777,1760857839880,-500.0,0.00015254,2]
[391805778,1760857839889,-500.0,0.00015254,2]
[391805779,1760857839898,-500.0,0.00015254,2]
[391805780,1760857839908,-381.26830709,0.00015254,2]
[391805781,1760857839922,-118.73169291,0.00015254,2]
[391805782,1760857839932,-381.26830709,0.00015254,2]
[391805887,1760857861563,200.0,0.00032982,120]
[391805888,1760857913806,215.0,0.00014593,2]
[391805889,1760857920909,215.0,0.00014674,2]
[391805890,1760857924039,215.0,0.0001461,2]
[391805891,1760857926713,176.32371828,0.00032982,30]
[391805892,1760857935769,-215.0,0.00014715,2]
[391805893,1760857935793,-215.0,0.00014884,2]
[391805894,1760857935817,-215.0,0.0001512,2]
[391805895,1760857935843,-118.73169291,0.00015254,2]
[391805896,1760857935871,-500.0,0.00015254,2]
[391805897,1760857935895,-500.0,0.00015254,2]
[391805898,1760857935919,-500.0,0.00015254,2]
[391805899,1760857935946,-500.0,0.00015254,2]
[391805900,1760857935972,-595.59104941,0.00015254,2]
[391805901,1760857935995,-500.0,0.00015254,2]
[391805902,1760857936020,-500.0,0.00015254,2]
[391805903,1760857936045,-500.0,0.00015254,2]
[391805904,1760857936070,-472.83985363,0.00015254,2]
[391805905,1760857936094,-419.88605035,0.00015254,2]
[391805906,1760857936117,-215.0,0.00015361,2]
[391805907,1760857936141,-215.0,0.00015503,2]
[391805908,1760857936165,-215.0,0.00015597,2]
[391805909,1760857936188,-215.0,0.00015621,2]
[391805910,1760857936211,-215.0,0.00015677,2]
[391805911,1760857936233,-151.0,0.00015696,2]
[391805912,1760857936257,-215.0,0.00015699,2]
[391805913,1760857936283,-215.0,0.00015714,2]
[391805914,1760857936307,-215.0,0.00015828,2]
[391805915,1760857936332,-215.0,0.00015911,2]
[391805916,1760857936355,-500.0,0.00016779,2]
[391805917,1760857936377,-670.3805045,0.00016861,2]
[391805918,1760857936399,-486.95299408,0.00017183,2]
[391805919,1760857936422,-670.3805045,0.00019077,2]
[391805920,1760857936443,-641.69352294,0.00019112,2]
[391805921,1760857936464,-228.48101542,0.00019112,2]
[391805922,1760857936485,-347.30741419,0.00019146,2]
[391805923,1760857936507,-500.0,0.00019229,2]
[391805924,1760857936528,-500.0,0.00019229,2]
[391805925,1760857936550,-356.16454594,0.00019229,2]
[391805926,1760857936571,-500.0,0.00019229,2]
[391805927,1760857936593,-909.58814362,0.00019385,2]
[391805928,1760857936617,-365.84,0.00019484,2]
[391805929,1760857936641,-5485.16270851,0.00019705,2]
[391805930,1760857962278,215.0,0.00014683,2]
[391805934,1760858114769,12849.82289,0.00033013,120]
[391805935,1760858161511,200.0,0.00033013,120]
[391805936,1760858178155,-215.0,0.00014882,2]
[391805937,1760858178180,-83.72270757,0.00014917,2]
[391805938,1760858184005,6344.422062,0.00033013,120]
[391805939,1760858460803,200.0,0.00033015,120]
[391805942,1760858754328,2745.89934009,0.000139,2]
[391805943,1760858761904,200.0,0.0003305,120]
[391805944,1760858831621,1166201.22157977,0.0003305,30]
[391805945,1760858840094,200.0,0.000146,5]
[391805946,1760858842195,500.0,0.000147,5]
[391805949,1760858864680,321.22,0.00013699,2]
[391805971,1760859031651,-800.0,0.000148,5]
[391805972,1760859031660,-182.66281573,0.000149,2]
[391805973,1760859031669,-1000.0,0.000149,5]
[391805974,1760859031679,-200.28581928,0.000149,2]
[391805975,1760859031688,-532.22378244,0.000149,2]
[391805976,1760859031697,-156.46197734,0.000149,2]
[391805977,1760859031706,-181.92349875,0.00014917,2]
[391805978,1760859031715,-131.27729243,0.00014917,2]
[391805979,1760859031724,-1200.0,0.00014946,2]
[391805980,1760859031733,-300.0,0.00014946,2]
[391805981,1760859031742,-480.0,0.00014947,2]
[391805982,1760859031752,-500.0,0.00014947,2]
[391805983,1760859031761,-500.0,0.00014947,2]
[391805984,1760859031771,-500.0,0.00014947,2]
[391805985,1760859031779,-500.0,0.00014947,2]
[391805986,1760859031788,-500.0,0.00014947,2]
[391805987,1760859031797,-500.0,0.00014947,2]
[391805988,1760859031808,-500.0,0.00014947,2]
[391805989,1760859031816,-500.0,0.00014947,2]
[391805990,1760859031825,-202.84386878,0.00014947,2]
[391805991,1760859031835,-132.32094524,0.00014947,2]
[391805992,1760859032156,-367.67905476,0.00014947,2]
[391805993,1760859032166,-21.95080754,0.00014947,2]
[391805994,1760859032177,-478.04919246,0.00014947,2]
[391805995,1760859032186,-57.48580754,0.00014947,2]
[391805996,1760859032205,-442.51419246,0.00014947,2]
[391805997,1760859032216,-500.0,0.00014947,2]
[391805998,1760859032225,-500.0,0.00014947,2]
[391805999,1760859032234,-500.0,0.00014947,2]
[391806000,1760859032243,-80.01685535,0.00014947,2]
[391806001,1760859032254,-419.98314465,0.00014947,2]
[391806002,1760859032263,-500.0,0.00014947,2]
[391806003,1760859032272,-500.0,0.00014947,2]
[391806004,1760859032282,-500.0,0.00014947,2]
[391806005,1760859032291,-500.0,0.00014947,2]
[391806006,1760859032300,-481.34995026,0.00014947,2]
[391806007,1760859032311,-18.65004974,0.00014947,2]
[391806008,1760859032320,-294.83995126,0.00014947,2]
[391806009,1760859032331,-205.16004874,0.00014947,2]
[391806010,1760859032340,-500.0,0.00014947,2]
[391806011,1760859032350,-500.0,0.00014947,2]
[391806012,1760859032359,-499.99999999,0.00014947,2]
[391806013,1760859032368,-500.0,0.00014947,2]
[391806014,1760859032377,-500.0,0.00014947,2]
[391806015,1760859032386,-234.61002656,0.00014947,2]
[391806016,1760859032396,-11964.76502899,0.00014948,2]
[391806017,1760859032405,-500.0,0.00014973,2]
[391806018,1760859032415,-500.0,0.00014973,2]
[391806019,1760859032424,-297.57276772,0.00014999,2]
[391806020,1760859032434,-335.42987799,0.00014999,2]
[391806021,1760859032443,-500.0,0.00014999,2]
[391806022,1760859032452,-500.0,0.00014999,2]
[391806023,1760859032462,-500.0,0.00014999,2]
[391806024,1760859032474,-592.81747341,0.00014999,2]
[391806025,1760859032483,-500.0,0.00014999,2]
[391806026,1760859032492,-500.0,0.00014999,2]
[391806027,1760859032501,-500.0,0.00014999,2]
[391806028,1760859032512,-500.0,0.00014999,2]
[391806029,1760859032521,-500.0,0.00014999,2]
[391806030,1760859032530,-500.0,0.00014999,2]
[391806031,1760859032539,-496.62251936,0.00014999,2]
[391806032,1760859032551,-500.0,0.00014999,2]
[391806033,1760859032560,-500.0,0.00014999,2]
[391806034,1760859032569,-500.0,0.00014999,2]
[391806035,1760859032579,-550.0,0.00014999,2]
[391806036,1760859032587,-697.30849142,0.00014999,2]
[391806037,1760859032597,-101142.67466042,0.00015,2]
[391806038,1760859032606,-1352247.12722026,0.00015,2]
[391806039,1760859032617,-176174.32272578,0.00015,2]
[391806040,1760859032628,-118812.97975821,0.00015,2]
[391806041,1760859032639,-361348.6446616,0.00015,2]
[391806042,1760859032649,-1004.41808677,0.00015,2]
[391806043,1760859032660,-342.73609929,0.00015,2]
[391806044,1760859032671,-693.64931429,0.00015,2]
[391806056,1760859037638,-469.79193242,0.00015,2]
[391806057,1760859037724,-536.3687251,0.00015,2]
[391806058,1760859037810,-1065.5,0.00015,2]
[391806059,1760859037824,-733.28999955,0.00015,2]
[391806060,1760859037838,-1143.2351105,0.00015,2]
[391806070,1760859039904,-1168.273352,0.00015,2]
[391806071,1760859039921,-1146.89461072,0.00015,2]
[391806072,1760859039939,-1646.99525893,0.00015,2]
[391806099,1760859042720,-199732.71065561,0.00015,2]
[391806114,1760859045814,-3800.0,0.00015,2]
[391806121,1760859094816,1101.801,0.000147,2]
[391806122,1760859138375,300.0,0.000147,5]
[391806123,1760859338752,1500.0,0.00014587,2]
[391806124,1760859390316,1831.28,0.00014587,2]
[391806125,1760859424158,2577.25,0.00014527,2]
[391806126,1760859449373,169.75,0.00014674,2]
[391806127,1760859584334,500.0,0.00014233,2]
[391806128,1760859663340,200.0,0.00014151,2]
[391806129,1760859805163,250.0,0.00014077,7]
[391806130,1760859850393,250.0,0.00014142,2]
[391806131,1760860040550,500.0,0.000147,5]
[391806132,1760860084725,184.88,7.02e-05,2]
[391806133,1760860084924,184.88,9.359e-05,2]
[391806134,1760860085131,184.88,0.00011699,2]
[391806135,1760860085331,184.88,0.00014039,2]
[391806136,1760860189087,2006.57,0.00014148,2]
[391806146,1760860231855,-300.0,0.00014799,2]
[391806147,1760860231865,-300.0,0.00014799,2]
[391806148,1760860231875,-1200.0,0.00014799,2]
[391806149,1760860231885,-181.92349876,0.000148,2]
[391806150,1760860231894,-278.7601,0.000148,2]
[391806151,1760860231905,-2139.74290132,0.000148,2]
[391806152,1760860231916,-335.975,0.000148,2]
[391806153,1760860231928,-1580.39279868,0.000148,2]
[391806154,1760860231937,-530.1292261,0.000148,2]
[391806155,1760860231949,-1604.4575739,0.000148,2]
[391806156,1760860231958,-2500.0,0.000148,2]
[391806157,1760860231968,-1292.63682208,0.000148,2]
[391806158,1760860231979,-1481.48717515,0.000148,2]
[391806159,1760860231988,-1000.0,0.000148,5]
[391806160,1760860231998,-195.0,0.00014803,2]
[391806161,1760860232008,-250.0,0.00014803,2]
[391806162,1760860232017,-500.0,0.00014817,2]
[391806163,1760860232027,-254.31040157,0.00014834,2]
[391806164,1760860232037,-7650.97407066,0.0001485,2]
[391806165,1760860232073,-846.46166189,0.0001485,2]
[391806166,1760860232085,-943.94291776,0.0001485,2]
[391806167,1760860232128,-500.0,0.00014799,2]
[391806168,1760860232137,-169.59427474,0.00014799,2]
[391806169,1760860232149,-137.33735366,0.00014799,2]
[391806170,1760860232160,-579.67096282,0.0001485,2]
[391806171,1760860232169,-500.0,0.00014873,2]
[391806172,1760860232179,-500.0,0.00014873,2]
[391806173,1760860232188,-177.40358231,0.00014873,2]
[391806174,1760860232198,-161.03879369,0.00014873,2]
[391806175,1760860232208,-501.3626745,0.00014873,2]
[391806176,1760860232217,-500.0,0.00014873,2]
[391806178,1760860232226,-500.0,0.00014873,2]
[391806180,1760860232236,-166.77856871,0.00014873,2]
[391806181,1760860232245,-500.8204809,0.00014873,2]
[391806182,1760860232254,-501.54070657,0.00014873,2]
[391806183,1760860232264,-636.50877359,0.00014873,2]
[391806184,1760860232274,-261.72076035,0.00014876,2]
[391806185,1760860232286,-751.13799994,0.00014876,2]
[391806186,1760860232297,-533.0325,0.00014876,2]
[391806187,1760860232325,-500.0,0.00014799,2]
[391806188,1760860232335,-1599.39873971,0.00014876,2]
[391806189,1760860232344,-11.15477603,0.00014893,2]
[391806192,1760860232371,-500.0,0.00014799,2]
[391806194,1760860232381,-1188.84522397,0.00014893,2]
[391806196,1760860232390,-150.0,0.00014893,2]
[391806198,1760860232399,-500.0,0.00014899,2]
[391806200,1760860232409,-500.0,0.00014899,2]
[391806203,1760860232418,-500.0,0.00014899,2]
[391806206,1760860232427,-268.29766499,0.00014899,2]
[391806209,1760860232437,-430.03007582,0.00014899,2]
[391806212,1760860232446,-170.41012235,0.00014899,2]
[391806214,1760860232455,-500.0,0.00014899,2]
[391806217,1760860232464,-500.0,0.00014899,2]
[391806220,1760860232473,-500.0,0.00014899,2]
[391806223,1760860232483,-500.0,0.00014899,2]
[391806226,1760860232492,-298.84262287,0.00014899,2]
[391806229,1760860232501,-500.0,0.00014899,2]
[391806232,1760860232510,-500.0,0.00014899,2]
[391806235,1760860232519,-500.0,0.00014899,2]
[391806238,1760860232528,-500.0,0.00014899,2]
[391806240,1760860232537,-500.0,0.00014899,2]
[391806242,1760860232546,-300.0,0.00014899,2]
[391806245,1760860232556,-150.0,0.00014899,2]
[391806247,1760860232565,-150.0,0.00014899,2]
[391806248,1760860232575,-500.0,0.00014899,2]
[391806249,1760860232584,-150.0,0.00014899,2]
[391806250,1760860232593,-500.0,0.00014899,2]
[391806251,1760860232603,-150.0,0.00014899,2]
[391806252,1760860232612,-500.0,0.00014899,2]
[391806253,1760860232622,-200.0,0.00014899,2]
[391806254,1760860232631,-558.3570642,0.000149,2]
[391806255,1760860232640,-932.873,0.000149,2]
[391806256,1760860232650,-33133.8006,0.000149,2]
[391806257,1760860232659,-1000.0,0.000149,2]
[391806258,1760860232668,-18075.19339416,0.000149,2]
[391806259,1760860232679,-82544.41232163,0.000149,2]
[391806260,1760860232690,-5787.304048,0.000149,2]
[391806261,1760860232701,-2272.296,0.000149,2]
[391806262,1760860232712,-5393.15800006,0.000149,2]
[391806263,1760860232722,-5324.03647028,0.000149,2]
[391806264,1760860232733,-370.53545966,0.000149,2]
[391806265,1760860232768,-178.92588708,0.00014799,2]
[391806266,1760860232777,-500.0,0.00014799,2]
[391806267,1760860232787,-7958.78528223,0.000149,2]
[391806268,1760860232798,-33152.0769582,0.000149,2]
[391806272,1760860237742,-500.0,0.00014799,2]
[391806273,1760860237751,-500.0,0.00014799,2]
[391806274,1760860237761,-500.0,0.00014799,2]
[391806275,1760860237770,-500.0,0.00014799,2]
[391806277,1760860237779,-500.0,0.00014799,2]
[391806278,1760860237789,-429.25000049,0.00014799,2]
[391806279,1760860237933,-70.74999951,0.00014799,2]
[391806280,1760860237943,-500.0,0.00014799,2]
[391806281,1760860237952,-500.0,0.00014799,2]
[391806282,1760860237962,-500.0,0.00014799,2]
[391806283,1760860237971,-500.0,0.00014799,2]
[391806284,1760860237981,-500.0,0.00014799,2]
[391806285,1760860237990,-500.0,0.00014799,2]
[391806286,1760860237999,-321.06402808,0.00014799,2]
[391806287,1760860238009,-500.0,0.00014799,2]
[391806288,1760860238018,-500.0,0.00014799,2]
[391806289,1760860238027,-500.0,0.00014799,2]
[391806290,1760860238036,-500.0,0.00014799,2]
[391806291,1760860238046,-500.0,0.00014799,2]
[391806292,1760860238057,-31793.19376578,0.000149,2]
[391806293,1760860238075,-1000.0,0.000149,2]
[391806294,1760860238085,-1107.0307,0.000149,2]
[391806295,1760860238099,-156.46197733,0.000149,2]
[391806296,1760860238108,-10768.2885261,0.000149,2]
[391806297,1760860238118,-1500.0,0.000149,5]
[391806298,1760860238128,-6618.6821,0.000149,2]
[391806299,1760860238137,-233.5003,0.000149,2]
[391806300,1760860238147,-150.0,0.000149,5]
[391806301,1760860238157,-150.0,0.000149,5]
[391806302,1760860238167,-150.0,0.000149,5]
[391806303,1760860238177,-180.80888259,0.000149,5]
[391806304,1760860238187,-500.0,0.000149,5]
[391806305,1760860238196,-500.0,0.000149,5]
[391806306,1760860238205,-150.0,0.000149,5]
[391806307,1760860238215,-500.0,0.000149,5]
[391806308,1760860238224,-215.45985055,0.000149,5]
[391806309,1760860238233,-150.0,0.000149,5]
[391806310,1760860238243,-500.0,0.000149,5]
[391806311,1760860238252,-150.0,0.00014954,2]
[391806312,1760860238262,-150.0,0.00014954,2]
[391806313,1760860238271,-500.0,0.00014954,2]
[391806315,1760860238280,-500.0,0.00014954,2]
[391806317,1760860238290,-150.0,0.00014955,5]
[391806319,1760860238300,-150.0,0.00014955,5]
[391806321,1760860238309,-150.0,0.00014955,5]
[391806323,1760860238318,-500.0,0.00014955,5]
[391806325,1760860238328,-500.0,0.00014955,5]
[391806327,1760860238337,-150.44240007,0.00014955,5]
[391806329,1760860238347,-500.0,0.00014955,5]
[391806331,1760860238356,-152.40750548,0.00014955,5]
[391806333,1760860238365,-500.0,0.00014955,5]
[391806335,1760860238375,-500.0,0.00014973,2]
[391806337,1760860238384,-500.0,0.00014973,2]
[391806339,1760860238394,-500.0,0.00014973,2]
[391806341,1760860238403,-503.45340925,0.00014973,2]
[391806343,1760860238412,-500.0,0.00014973,2]
[391806345,1760860238421,-562.27886967,0.00014973,2]
[391806347,1760860238430,-592.20266532,0.00014973,2]
[391806349,1760860238439,-160.65429965,0.00014973,2]
[391806351,1760860238449,-501.16569824,0.00014973,2]
[391806353,1760860238458,-502.18958522,0.00014973,2]
[391806355,1760860238467,-553.62578546,0.00014973,2]
[391806357,1760860238476,-502.5049588,0.00014973,2]
[391806358,1760860238485,-502.7281344,0.00014973,2]
[391806360,1760860238494,-161.63760914,0.00014973,2]
[391806363,1760860238503,-500.79672474,0.00014973,2]
[391806364,1760860238513,-500.0,0.00014973,2]
[391806367,1760860238522,-501.3095828,0.00014973,2]
[391806369,1760860238532,-503.46286864,0.00014973,2]
[391806370,1760860238541,-502.96020097,0.00014973,2]
[391806373,1760860238550,-502.08499126,0.00014973,2]
[391806375,1760860238560,-502.20104364,0.00014973,2]
[391806376,1760860238569,-278.98065203,0.00014973,2]
[391806378,1760860238578,-500.0,0.00014973,2]
[391806381,1760860238589,-500.34130898,0.00014973,2]
[391806382,1760860238598,-150.0,0.00014973,2]
[391806384,1760860238608,-151.68810834,0.00014973,2]
[391806386,1760860238617,-150.0,0.00014973,2]
[391806388,1760860238626,-150.0,0.00014973,2]
[391806390,1760860238635,-150.0,0.00014973,2]
[391806392,1760860238645,-150.0,0.00014973,2]
[391806394,1760860238655,-286.29871364,0.00014973,2]
[391806396,1760860238664,-201.44222301,0.00014973,2]
[391806398,1760860238674,-150.0,0.00014973,2]
[391806400,1760860238684,-500.0,0.00014973,2]
[391806402,1760860238693,-150.0,0.00014973,2]
[391806404,1760860238703,-500.0,0.00014973,2]
[391806406,1760860238712,-150.0,0.00014973,2]
[391806408,1760860238722,-150.0,0.00014973,2]
[391806410,1760860238732,-209.38380504,0.0001499,2]
[391806412,1760860238742,-151.0,0.00014991,2]
[391806414,1760860238751,-151.0,0.00014991,2]
[391806416,1760860238760,-151.0,0.00014991,2]
[391806418,1760860238769,-151.0,0.00014991,2]
[391806420,1760860238778,-151.0,0.00014991,2]
[391806422,1760860238789,-151.0,0.00014991,2]
[391806424,1760860238800,-151.0,0.00014991,2]
[391806426,1760860238809,-151.0,0.00014991,2]
[391806428,1760860238818,-151.0,0.00014991,2]
[391806430,1760860238828,-151.0,0.00014991,2]
[391806432,1760860238836,-151.0,0.00014991,2]
[391806434,1760860238846,-151.0,0.00014991,2]
[391806436,1760860238855,-151.0,0.00014991,2]
[391806437,1760860238864,-151.0,0.00014991,2]
[391806440,1760860238873,-151.0,0.00014991,2]
[391806442,1760860238883,-151.0,0.00014991,2]
[391806444,1760860238893,-151.0,0.00014991,2]
[391806445,1760860238902,-151.0,0.00014991,2]
[391806447,1760860238911,-151.0,0.00014991,2]
[391806449,1760860238920,-151.0,0.00014991,2]
[391806451,1760860238930,-151.09277885,0.00014999,2]
[391806468,1760860239079,-537.90142121,0.00014999,2]
[391806470,1760860239092,-80264.88355265,0.00015,2]
[391806472,1760860239107,-694.22104089,0.00015,2]
[391806474,1760860239120,-1293.126025,0.00015,2]
[391806475,1760860239940,-773.67064723,0.00015,2]
[391806476,1760860239952,-455.1,0.00015,2]